Cogmind - Beta 16.1 *** ADVENTURER MODE // 2026.03.26 @ 01:11:47 Player: Tisa Result: Destroyed by AO-NWF(R) with Subdweller Machine Gun Performance ------------- Evolutions (0) 0 Regions Visited (2) 400 Robots Destroyed (19) 95 Value Destroyed (477) 477 Prototype IDs (0) 0 Alien Tech Used (0) 0 Bonus (0) 0 TOTAL SCORE: 972 Bonus ------- None Cogmind --------- Core Integrity 0/250 Matter 155/300 Energy 99/100 System Corruption 0% Temperature Cool (0) Movement Core (50) Location -10/Subcaves Parts ------- > --- POWER (1) -------- (None) > --- PROPULSION (2) --- (None) > --- UTILITY (2) ------ Visual Processing Unit Signal Interpreter > --- WEAPON (2) ------- Light Assault Rifle > --- INVENTORY (5) ---- Light Armor Plating Light Armor Plating Grenade Launcher Dirty Datajack (20) Peak State ------------ > --- POWER ------------ Ion Engine > --- PROPULSION ------- Light Treads Spiked Treads > --- UTILITY ---------- Visual Processing Unit Signal Interpreter > --- WEAPON ----------- Light Cannon Light Cannon > --- INVENTORY -------- Light Armor Plating Light Armor Plating Light Assault Rifle Grenade Launcher Dirty Datajack [Rating: 10] Favorites ----------- Power Ion Engine Engine Ion Engine Propulsion Light Treads Treads Light Treads Utility Visual Processing Unit Device Terrain Scanner Processor Visual Processing Unit Protection Light Armor Plating Weapon Light Cannon Energy Gun Medium Laser Ballistic Gun Light Assault Rifle Ballistic Cannon Light Cannon Launcher Grenade Launcher Build | -11 -10 -10 ------- Run | Yrd Mat Sub Slots Evolved . | . . . Power . | . . . Propulsion . | . . . Utility . | . . . Weapon . | . . . Parts Attached 14 | 5 8 1 Power 1 | 1 . . Engine 1 | 1 . . Core . | . . . Reactor . | . . . Propulsion 3 | 2 . 1 Treads 3 | 2 . 1 Leg . | . . . Wheel . | . . . Hover . | . . . Flight . | . . . Utility 4 | . 4 . Device 1 | . 1 . Storage . | . . . Processor 2 | . 2 . Hackware . | . . . Protection 1 | . 1 . Artifact . | . . . Weapon 6 | 2 4 . Energy Gun 2 | 2 . . Energy Cannon . | . . . Ballistic Gun 1 | . 1 . Ballistic Cannon 2 | . 2 . Launcher 1 | . 1 . Special Weapon . | . . . Impact Weapon . | . . . Slashing Weapon . | . . . Piercing Weapon . | . . . Special Melee Weapon . | . . . Unidentified Prototypes . | . . . Parts Lost 6 | . . 6 Power 1 | . . 1 Propulsion 3 | . . 3 Utility . | . . . Weapon 2 | . . 2 Highest Loss Streak 4 | . . 4 To Critical Strikes 2 | . . 2 Average Backups 3 | 1 3 4 Power . | . . . Propulsion . | . . . Utility 1 | . 1 2 Weapon 1 | . 2 1 Tool/Special . | . . . Unused Backups 4 | . 1 3 Power . | . . . Propulsion . | . . . Utility 2 | . . 2 Weapon 1 | . 1 . Tool/Special 1 | . . 1 Average Slot Usage (%) 94 | . 90 97 Engine 13 | . 14 12 Treads 27 | . 27 27 Device 2 | . 4 . Processor 17 | . 7 28 Protection 3 | . 7 . Energy Gun 7 | . 15 . Ballistic Cannon 16 | . 7 27 Launcher 2 | . 4 . Peak Build Rating 10 | 5 8 10 Average Rating 7 | 4 6 8 On Entrance 4 | . 5 8 Avg Prop Armor Cover (%) . | . . . Naked Turns . | . . . Heaviest Build 14 | 9 14 11 Greatest Support 40 | 40 40 40 Greatest Overweight (x) . | . . . Average Overweight (x) . | . . . Largest Inventory Capacity 5 | 5 5 5 Average Capacity 5 | 5 5 5 Most Carried 5 | 3 5 5 Average Carried 3 | 1 3 4 Final Capacity 5 | 5 5 5 Final Carried 5 | 1 5 4 Class Distribution -------------------- 100% | Mutant Dominant Class ---------------- Mutant | -10/Materials Mutant | -10/Subcaves Resources | -11 -10 -10 ----------- Run | Yrd Mat Sub Matter Collected 468 | 250 31 187 Remotely . | . . . Salvage Created 552 | 82 365 105 Parts 22 | . 19 3 Haulers Intercepted . | . . . Recyclers Shooed 2 | . 2 . Parts Field Recycled . | . . . Retrieved Matter . | . . . Parts Self-Destructed . | . . . Prevented . | . . . Parts Restored . | . . . Kills | -11 -10 -10 ------- Run | Yrd Mat Sub Combat Hostiles Destroyed 16 | . 10 6 Guns 11 | . 10 1 Cannons 5 | . . 5 Classes Destroyed 5 | 1 3 1 Recycler 2 | 1 1 . Watcher 1 | . 1 . Swarmer 6 | . 6 . Grunt 4 | . 4 . Subdweller 6 | . . 6 Best Kill Streak 3 | 1 3 2 Combat Bots Only 3 | . 3 2 Max Kills in Single Turn 1 | 1 1 1 Gunslinging . | . . . Exploded . | . . . Melee . | . . . Uniques/NPCs Destroyed . | . . . Combat | -11 -10 -10 -------- Run | Yrd Mat Sub Hostile Shots Fired 102 | . 46 56 Missed 21 | . 11 10 Hits 81 | . 35 46 Projectile 81 | . 35 46 Critical Strikes 6 | . . 6 Damage Taken 1053 | . 276 777 Core 257 | . 65 192 Absorbed by Shields . | . . . Ignored by Resistances 303 | . 84 219 Regen/Repaired (Parts) 88 | . 88 . Core Remaining (%) 100 | 100 . . Volleys Fired 69 | 4 30 35 Largest 2 | 2 2 2 Hottest 100 | 100 100 60 Shots Fired 136 | 8 60 68 Gun 72 | 8 58 6 Cannon 64 | . 2 62 Launcher . | . . . Special . | . . . Kinetic 71 | . 3 68 Thermal 65 | 8 57 . Explosive . | . . . Electromagnetic . | . . . Robot Hit Streak 25 | 7 15 25 Robot Miss Streak 2 | 1 2 1 Penetration Max . | . . . Secondary Targets 3 | . 3 . Max Gunslinging Chain 1 | . 1 . Shots Hit Robots 109 | 7 44 58 Core Hits 33 | 2 18 13 Critical Kills . | . . . Critical Parts Destroyed . | . . . Critical Strikes 6 | 1 3 2 Burn 4 | 1 3 . Blast 2 | . . 2 Melee Attacks . | . . . Impact . | . . . Slashing . | . . . Piercing . | . . . Sneak Attacks . | . . . Combat Hostiles . | . . . Follow-up Attacks . | . . . Damage Inflicted 1461 | 86 535 840 Guns 665 | 86 535 44 Cannons 796 | . . 796 Explosions . | . . . Melee . | . . . Ramming . | . . . Kinetic 840 | . . 840 Thermal 621 | 86 535 . Explosive . | . . . Electromagnetic . | . . . Impact . | . . . Slashing . | . . . Piercing . | . . . Highest Corruption . | . . . Average Corruption . | . . . Corruption Purged . | . . . Corruption Blocked . | . . . Overload Shots . | . . . Overflow Damage . | . . . Projectiles . | . . . Explosions . | . . . Melee . | . . . Knockbacks 13 | . . 13 Impact . | . . . Kinetic 13 | . . 13 Secondary . | . . . Self-Inflicted Damage . | . . . Shots . | . . . Rammed . | . . . Targets Rammed . | . . . Kicked . | . . . Crushed . | . . . Highest Temperature 342 | 156 342 229 Average Temperature 129 | 79 136 120 Received Heat Transfer 501 | . 120 381 Siege Activations . | . . . Martial Activations . | . . . Shielding Activations . | . . . Robots Disrupted . | . . . Combat Hostiles . | . . . Robots Corrupted . | . . . Combat Hostiles . | . . . Parts Fried . | . . . Impact Corruptions . | . . . Robots Melted . | . . . Combat Hostiles . | . . . Parts Melted 6 | 2 3 1 Heat Transferred 2146 | 333 1813 . Parts Sabotaged . | . . . Parts Stolen . | . . . Parts Stripped . | . . . Power Chain Reactions . | . . . Alert | -11 -10 -10 ------- Run | Yrd Mat Sub Maximum Alert Level . | . . . Low Security (%) 100 | 100 100 . Level 1 . | . . . Level 2 . | . . . Level 3 . | . . . Level 4 . | . . . Level 5 . | . . . High Security . | . . . Max Security . | . . . Peak Influence 85 | 5 85 . Initial . | . . . Average 18 | . 20 . Influence Increases 271 | 5 266 . Destroy 0b10 Robot/C 200 | . 200 . Destroy 0b10 Robot/NC 15 | 5 10 . Destroy Leader 42 | . 42 . Successful Hack 14 | . 14 . Influence Decreases 271 | 5 266 . Time Decay 271 | 5 266 . Squads Dispatched 1 | . 1 . Investigation 1 | . 1 . Extermination . | . . . Reinforcement . | . . . Assault . | . . . Garrison . | . . . Intercept . | . . . Searches Triggered . | . . . Construction Impeded . | . . . Haulers Reinforced . | . . . Active Scanning Responses . | . . . Cargo Convoy Interrupts . | . . . Stealth | -11 -10 -10 --------- Run | Yrd Mat Sub Distress Signals 1 | . 1 . Communications Jammed . | . . . Distress Signals . | . . . Times Spotted 22 | . 15 7 Peak Tracking Total 3 | . 3 2 Tactical Retreats . | . . . Traps | -11 -10 -10 ------- Run | Yrd Mat Sub Traps Triggered 1 | . 1 . Indirectly . | . . . Trap Hack Attempts . | . . . Triggered . | . . . Disarmed . | . . . Reprogrammed . | . . . Reused . | . . . Traps Extracted . | . . . Installed . | . . . Triggered . | . . . Machines | -11 -10 -10 ---------- Run | Yrd Mat Sub Machines Disabled . | . . . Max in Single Turn . | . . . Machines Repaired . | . . . Machines Dismantled . | . . . Machines Sabotaged . | . . . Overloaded Fab Kills . | . . . Hacking | -11 -10 -10 --------- Run | Yrd Mat Sub Machines Accessed 5 | . 5 . Terminals 4 | . 4 . Fabricators . | . . . Repair Stations 1 | . 1 . Recycling Units . | . . . Scanalyzers . | . . . Garrison Access . | . . . Total Hacks 9 | . 9 . Successful 4 | . 4 . Failed 5 | . 5 . Catastrophic 1 | . 1 . Database Lockouts . | . . . Manual 7 | . 7 . Terminals 7 | . 7 . Fabricators . | . . . Repair Stations 2 | . 2 . Recycling Units . | . . . Scanalyzers . | . . . Garrison Access . | . . . Terminal Hacks 1 | . 1 . Branch Access Points 1 | . 1 . Fabricator Hacks . | . . . Repair Station Hacks 2 | . 2 . Scan Component 1 | . 1 . Repair 1 | . 1 . Recycling Unit Hacks . | . . . Scanalyzer . | . . . Garrison Access Hacks . | . . . Unauthorized Hacks 1 | . 1 . Terminals 1 | . 1 . Operators 1 | . 1 . Fabricators . | . . . Repair Stations . | . . . Recycling Units . | . . . Scanalyzers . | . . . Garrison Access . | . . . Data Cores Recovered . | . . . Used . | . . . Hacking Detections 5 | . 5 . Full Trace Events . | . . . Feedback Events . | . . . Feedback Blocked . | . . . Robot Schematics Acquired . | . . . Robots Built . | . . . Authchips . | . . . Time . | . . . Total Robot Build Rating . | . . . Part Schematics Acquired . | . . . Parts Built . | . . . Authchips . | . . . Time . | . . . Total Part Build Rating . | . . . Part Studies Acquired . | . . . Parts Repaired 1 | . 1 . Time 26 | . 26 . Parts Recycled . | . . . Recycled Matter . | . . . Retrieved Matter . | . . . Retrieved Components . | . . . Parts Scanalyzed . | . . . Part Schematics Acquired . | . . . Parts Damaged . | . . . Bothacking | -11 -10 -10 ------------ Run | Yrd Mat Sub Used RIF Installer . | . . . Robots Hacked . | . . . Non-combat . | . . . Combat . | . . . Robot Hacks Applied . | . . . Relay Couplers Released . | . . . Fabnet Peak Effective % . | . . . Robots Rewired . | . . . Allies Hacked . | . . . Hacks Repelled . | . . . Allies | -11 -10 -10 -------- Run | Yrd Mat Sub Total Allies . | . . . Largest Group . | . . . Highest-Rated Group . | . . . Highest-Rated Ally . | . . . Total Orders . | . . . Ally Attacks . | . . . Total Damage . | . . . Kills . | . . . Allies Corrupted . | . . . Allies Melted . | . . . Intel | -11 -10 -10 ------- Run | Yrd Mat Sub Active Infowar (turns) 1454 | . 687 767 Optics 1143 | . 376 767 Terrain 311 | . 311 . Robot Analysis Total . | . . . Derelict Logs Recovered . | . . . Drone Launches . | . . . Drone Recoveries . | . . . Exploration | -11 -10 -10 ------------- Run | Yrd Mat Sub Turns Passed 1709 | 79 863 767 Spaces Moved 876 | 43 427 406 Core 11 | 11 . . Treads 865 | 32 427 406 Legs . | . . . Wheels . | . . . Hover . | . . . Flight . | . . . Fastest Speed 50 | 50 160 160 Average Speed 158 | 131 160 160 Slowest Speed 160 | 160 160 160 Overloaded Moves . | . . . Propulsion Burnouts . | . . . Robots Hopped . | . . . Potential Cave-ins . | . . . Cave-ins Triggered . | . . . Exploration Rate (%) 32 | 4 71 22 Regions Visited 2 Branch Regions 1 Pre-discovered Areas . | . . . Known Exits Taken 1 | . 1 . Unknown Exits Taken 1 | 1 . . Scrap Searched 1 | . . 1 Spaces Dug . | . . . Terrain Destroyed . | . . . Melee . | . . . Projectile . | . . . AOE . | . . . Terrain Rammed . | . . . Walls Destroyed . | . . . Machines Disabled . | . . . Actions | -11 -10 -10 --------- Run | Yrd Mat Sub Total 1062 | 57 547 458 Wait 73 | . 61 12 Move 874 | 42 426 406 Hop . | . . . Pick Up 21 | 6 13 2 Fast Attach . | . . . Attach 11 | 5 4 2 Detach . | . . . Swap 7 | . 7 . Drop 7 | . 6 1 Fire 69 | 4 30 35 Melee . | . . . Ram . | . . . Kick . | . . . Crush . | . . . Escape Stasis . | . . . Rewire . | . . . Trap . | . . . Miscellaneous . | . . . Route ------- -11/Scrapyard -10/Materials (discovered 4 exits: *Mat x2 / *Min / *Sub) -10/Subcaves (discovered 1 exit: *Mat) History --------- Turn | Location | Event 7 | -11/Scrapyard | Discovered new exit (range 15) 80 | -11/Scrapyard | Entered Materials 315 | -10/Materials | Build established: Mutant 415 | -10/Materials | Identified exit to Mines 418 | -10/Materials | Discovered new exit (range 12) 741 | -10/Materials | Repaired Lgt. Treads 844 | -10/Materials | Discovered new exit (range 10) 866 | -10/Materials | Identified exit to Materials 927 | -10/Materials | Discovered new exit (range 11) 942 | -10/Materials | Identified exit to Subcaves 943 | -10/Materials | Entered Subcaves 944 | -10/Subcaves | Approached by a straggling Scientist 1012 | -10/Subcaves | Discovered new exit (range 9) 1013 | -10/Subcaves | Shifting Twisted Machinery released Sub. Laser 1023 | -10/Subcaves | Identified exit to Materials 1300 | -10/Subcaves | Core integrity fell below 50% 1699 | -10/Subcaves | Core integrity fell below 20% 1710 | -10/Subcaves | Destroyed by AO-NWF(R) with Subdweller Machine Gun Last Messages --------------- Ion Engine destroyed. 3Q-3XK(R) knocked back. FX-FHC(c): "I think it's somewhere east of here" 3Q-3XK(R) knocked back. Sub. Laser melted. 3Q-3XK(R) destroyed. Subatomizers dissect the Sub. Optics. Acquired 7 matter. AO-NWF(R) knocked back. Lgt. Cannon destroyed. Critical hit (Destroy). Lgt. Treads destroyed. VC-VJ5(R) knocked back. AO-NWF(R) affixes Scrap Shield Fragment to Scrap Shield. Critical hit (Destroy). Spk. Treads destroyed. Lgt. Cannon destroyed. FX-FHC(c): "I think it's somewhere east of here" VC-VJ5(R) destroyed. Map ----- +----------------------------------------------------+ | ???????????## ##?#### "" "" ## ## # # | | ??????????## ## ###""# " #### ### ## | | ?????????## ##??###?## < # | | ????????## ###### ##????????## ## | | ???????## ##????#### ## ##??????????###########? | | ??????## ##????????########??????????????????????? | | ??????# ##???????????????????????????????????????? | | ??????# ##???????????????????????????????????????? | | ??????## #???????????????????????????????????????? | | ??????# !#?????????####??????????????????????????? | | ??????## #????????##" #??????????????????????????? | | ???????# #??????### ???????????????????????????? | | ???????#"##????## #???????????????????????????? | | ???????## ##???# #???????????????????????????? | | ???????## #?### ##??????????????????????????? | | ???????# #?# #??????????????????????????? | | ???????# ##### #??????????????????????????? | | ???????# ### # #??????????????????????????? | | ??????## ! #??????????????????????????? | | ??????# [ ##?????????????????????????? | | ??????# ## # != #?????????????????????????? | | ??????## ## ####### #?????????????????????????? | | ???????# ### #????# ##??????? #????????????????? | | ??????# ?? #????#% c####??? ##???????????????? | | ??????# ?# ????# ## ##??????????????? | | ??????## ?####????##" % @% #?????????????? | | ??????? ??????????#"%R% #????????????? | | ??????? ??????????#"## % % #????????????? | | ??????? ??????????##### #????????????? | | ?????? ??????????????#" ### """???????????? | | ??????# ??????????????# %#??? " ???????????? | | ???????#??????????????? ???? ##???????????? | | ??????????????????????? #???? ##????????????? | | ??????????????????????? ###?????##?????????????? | | ?????????????????????? "#??????????????????????? | | ??????????????????????#####??????????????????????? | | ?????????????????????????????????????????????????? | | ?????????????????????????????????????????????????? | | ?????????????????????????????????????????????????? | | ?????????????????????????????????????????????????? | | ?????????????????????????????????????????????????? | | ?????????????????????????????????????????????????? | | ?????????????????????????????????????????????????? | | ?????????????????????????????????????????????????? | | ?????????????????????????????????????????????????? | | ?????????????????????????????????????????????????? | | ?????????????????????????????????????????????????? | | ?????????????????????????????????????????????????? | | ?????????????????????????????????????????????????? | | ?????????????????????????????????????????????????? | +----------------------------------------------------+ Best States ------------- Heat Dissipation 25 Energy Generation 10 Energy Capacity 250 Matter Stores 300 Matter Capacity 300 Sight Range 18 Terrain Scan Range 14 Terrain Scan Density 10 Armor Coverage 150 Resistance: KI 20 Resistance: TH 20 Resistance: EX 20 Resistance: EM 20 Resistance: I 20 Resistance: S 20 Resistance: P 20 Evasion (%) 50 Recoil Reduction 2 Offensive Hacking 10 Item Schematics ----------------- None Robot Schematics ------------------ None Fabricated ------------ Nothing Repaired ---------- Lgt. Treads | 37% | -10/Materials Studied --------- None Alien Tech Used ----------------- None Achievements -------------- None Challenges ------------ None Game ------ Seed CompactLatentImmobilizer Manual? 0 Play Time 00:14:00 Cumulative 9.5 hours Start 2026.03.26 @ 01:01:47 End 2026.03.26 @ 01:11:47 Sessions 1 Manual Loads 0 Difficulty Adventurer Special Mode None Game No. 16 Rogue 0 Adventurer 16 Explorer 0 Win Type - Total 0 Types 0/0/0/0/0/0/0/0/0/0 Lore% 17 Gallery% 12 Achievement% 11 Wizard Run 0 Options --------- Layout 1 ASCII 0 Keyboard 0 Movement Mouse Keybinds 0 Fullscreen 2 Font 32/SmallcapsGlow Map View 50x35 Zoom Use 0% Tactical HUD 0 Map Filters NONE Filters NONE Steam 1 RUN: 5c116d14-aec4-4ee5-a9e9-dd03c0057f5a